Cogmind - Beta 9.1 @@@ ROGUE MODE // 2019.11.03 @ 19:45:39 Player: mako Result: Destroyed by as-12338 with Assembled F-torch Performance ------------- Evolutions (1) 500 Regions Visited (3) 600 Robots Destroyed (12) 60 Value Destroyed (160) 160 Prototype IDs (0) 0 Alien Tech Used (0) 0 Bonus (0) 0 TOTAL SCORE: 1320 Bonus ------- None Cogmind --------- Core Integrity 0/400 Matter 256/300 Energy 100/100 System Corruption 28% Temperature Cool (91) Location -9/Mines Parts ------- Power (1) Propulsion (2) Utility (3) High-capacity Storage Unit Weapon (3) Inventory (12) Ion Engine Improved Ion Engine Aluminum Leg Aluminum Leg Field Recycling Unit (0) Medium Laser Light Assault Rifle Light Assault Rifle Mining Laser Hammer Peak State ------------ Power Ion Engine Propulsion Light Treads Light Treads Utility Disposable Heat Sink High-capacity Storage Unit Improved Terrain Scanner Weapon Spread Laser Spread Laser Light Assault Rifle Inventory Ion Engine Aluminum Leg Aluminum Leg Field Recycling Unit Medium Laser Light Assault Rifle Light Assault Rifle Grenade Launcher Mining Laser Hammer [Rating: 14] Favorites ----------- Power Ion Engine Engine Ion Engine Propulsion Light Treads Treads Light Treads Leg Aluminum Leg Utility Improved Terrain Scanner Device Improved Terrain Scanner Storage High-capacity Storage Unit Weapon Light Assault Rifle Energy Gun Spread Laser Ballistic Gun Light Assault Rifle Launcher Grenade Launcher Special Weapon Mining Laser Build | -11 -10 -9 -9 ------- Run | Scr Mat Mat Min Slots Evolved 2 | . . 2 . Power . | . . . . Propulsion . | . . . . Utility 1 | . . 1 . Weapon 1 | . . 1 . Parts Attached 21 | 7 6 6 2 Power 1 | 1 . . . Engine 1 | 1 . . . Core . | . . . . Reactor . | . . . . Propulsion 4 | 2 2 . . Treads 2 | . 2 . . Leg 2 | 2 . . . Wheel . | . . . . Hover . | . . . . Flight . | . . . . Utility 5 | 2 1 2 . Device 3 | 1 . 2 . Storage 2 | 1 1 . . Processor . | . . . . Hackware . | . . . . Protection . | . . . . Artifact . | . . . . Weapon 11 | 2 3 4 2 Energy Gun 4 | . . 3 1 Energy Cannon . | . . . . Ballistic Gun 3 | 2 1 . . Ballistic Cannon . | . . . . Launcher 3 | . 1 1 1 Special Weapon 1 | . 1 . . Impact Weapon . | . . . . Slashing Weapon . | . . . . Piercing Weapon . | . . . . Special Melee Weapon . | . . . . Unidentified Prototypes . | . . . . Parts Lost 9 | . . . 9 Power 1 | . . . 1 Propulsion 2 | . . . 2 Utility 2 | . . . 2 Weapon 4 | . . . 4 Highest Loss Streak 9 | . . . 9 Average Slot Usage (%) 96 | . 100 96 55 Engine 11 | . 14 11 5 Treads 18 | . 10 22 11 Leg 5 | . 17 . . Device 17 | . 14 18 11 Storage 11 | . 14 11 11 Energy Gun 9 | . . 13 5 Ballistic Gun 15 | . 15 15 5 Launcher 4 | . 5 3 5 Special Weapon 2 | . 7 . . Naked Turns . | . . . . Heaviest Build 51 | 12 40 51 . Greatest Support 40 | 20 40 40 . Greatest Overweight (x) 3 | 3 . 1 . Average Overweight (x) . | . . 1 . Largest Inventory Capacity 12 | 6 12 12 12 Average Capacity 9 | 5 8 12 12 Most Carried 11 | 6 8 11 11 Average Carried 7 | 3 6 8 10 Final Capacity 12 | 6 12 12 12 Final Carried 11 | 6 8 11 10 Class Distribution -------------------- 53% | Skirmisher 46% | Mutant Dominant Class ---------------- Mutant | -10/Materials Skirmisher | -9/Materials Skirmisher | -9/Mines Resources | -11 -10 -9 -9 ----------- Run | Scr Mat Mat Min Matter Collected 375 | 302 9 54 10 Remotely . | . . . . Salvage Created 288 | 192 . 54 42 Parts 25 | 16 . 5 4 Haulers Intercepted . | . . . . Recyclers Shooed . | . . . . Parts Field Recycled . | . . . . Retrieved Matter . | . . . . Parts Self-Destructed . | . . . . Prevented . | . . . . Kills | -11 -10 -9 -9 ------- Run | Scr Mat Mat Min Combat Hostiles Destroyed 6 | . . 2 4 Guns 3 | . . 2 1 AOE 3 | . . . 3 Classes Destroyed 6 | 3 . 1 2 Worker 2 | 2 . . . Tunneler 3 | 3 . . . Recycler 1 | 1 . . . Swarmer 3 | . . . 3 Grunt 2 | . . 2 . Assembled 1 | . . . 1 Best Kill Streak 4 | 2 . 2 4 Combat Bots Only 4 | . . 2 4 Max Kills in Single Turn 3 | 1 . 1 3 Gunslinging . | . . . . Exploded 2 | . . . 2 Melee . | . . . . Uniques/NPCs Destroyed . | . . . . Combat | -11 -10 -9 -9 -------- Run | Scr Mat Mat Min Damage Taken 1258 | . 136 130 992 Core 425 | . 24 . 401 Absorbed by Shields . | . . . . Core Remaining (%) 95 | 100 90 . . Volleys Fired 29 | 16 2 8 3 Largest 3 | 2 1 3 3 Hottest 150 | 40 100 150 150 Shots Fired 65 | 32 2 22 9 Gun 61 | 32 . 22 7 Cannon . | . . . . Launcher 2 | . . . 2 Special 2 | . 2 . . Kinetic 43 | 32 . 8 3 Thermal 20 | . 2 14 4 Explosive 2 | . . . 2 Electromagnetic . | . . . . Robot Hit Streak 12 | 4 . 12 4 Robot Miss Streak 4 | 3 . 4 3 Penetration Max . | . . . . Secondary Targets . | . . . . Shots Hit Robots 44 | 20 . 19 5 Core Hits 32 | 10 . 13 9 Critical Hits . | . . . . Critical Kills . | . . . . Critical Parts Destroyed . | . . . . Melee Attacks . | . . . . Impact . | . . . . Slashing . | . . . . Piercing . | . . . . Sneak Attacks . | . . . . Combat Hostiles . | . . . . Follow-up Attacks . | . . . . Damage Inflicted 506 | 163 . 98 245 Guns 332 | 163 . 97 72 Cannons . | . . . . Explosions 171 | . . . 171 Melee . | . . . . Ramming 3 | . . 1 2 Kinetic 187 | 163 . 16 8 Thermal 145 | . . 81 64 Explosive 171 | . . . 171 Electromagnetic . | . . . . Impact . | . . . . Slashing . | . . . . Piercing . | . . . . Highest Corruption 28 | . . . 28 Average Corruption 21 | . . . 21 Corruption Purged . | . . . . Effects 1 | . . . 1 Message Errors 1 | . . . 1 Overload Shots . | . . . . Overflow Damage 10 | . . . 10 Projectiles . | . . . . Explosions 10 | . . . 10 Melee . | . . . . Knockbacks . | . . . . Impact . | . . . . Kinetic . | . . . . Secondary . | . . . . Self-Inflicted Damage 99 | . . . 99 Shots 3 | . . . 3 Rammed 3 | . 1 1 1 Targets Rammed 3 | . 1 1 1 Kicked . | . . . . Crushed . | . . . . Highest Temperature 192 | . 22 192 175 Average Temperature 106 | . 11 135 107 Received Heat Transfer 367 | . 72 75 220 Siege Activations . | . . . . Robots Corrupted . | . . . . Combat Hostiles . | . . . . Parts Fried . | . . . . Impact Corruptions . | . . . . Robots Melted . | . . . . Combat Hostiles . | . . . . Parts Melted . | . . . . Heat Transferred 241 | . . 105 136 Parts Sabotaged . | . . . . Parts Stolen . | . . . . Parts Stripped . | . . . . Power Chain Reactions . | . . . . Missiles Intercepted . | . . . . Alert | -11 -10 -9 -9 ------- Run | Scr Mat Mat Min Peak Influence 127 | 30 19 57 127 Average Influence 17 | 13 19 16 72 Maximum Alert Level . | . . . . Low Security (%) 100 | . . . . Level 1 . | . . . . Level 2 . | . . . . Level 3 . | . . . . Level 4 . | . . . . Level 5 . | . . . . High Security . | . . . . Max Security . | . . . . Squads Dispatched . | . . . . Investigation . | . . . . Extermination . | . . . . Reinforcement . | . . . . Assault . | . . . . Garrison . | . . . . Intercept . | . . . . Construction Impeded . | . . . . Haulers Reinforced . | . . . . Stealth | -11 -10 -9 -9 --------- Run | Scr Mat Mat Min Distress Signals 1 | . 1 . . Communications Jammed . | . . . . Distress Signals . | . . . . Times Spotted 31 | . 5 2 24 Peak Tracking Total 19 | . 4 2 19 Tactical Retreats 1 | . 1 . . Traps | -11 -10 -9 -9 ------- Run | Scr Mat Mat Min Traps Triggered . | . . . . Indirectly . | . . . . Trap Hack Attempts . | . . . . Triggered . | . . . . Disarmed . | . . . . Reprogrammed . | . . . . Reused . | . . . . Traps Extracted . | . . . . Installed . | . . . . Triggered . | . . . . Machines | -11 -10 -9 -9 ---------- Run | Scr Mat Mat Min Machines Disabled 2 | . . . 2 Max in Single Turn 2 | . . . 2 Machines Sabotaged . | . . . . Garrisons Compromised . | . . . . Overloaded Fab Kills . | . . . . Fab Network Shutdowns . | . . . . Hacking | -11 -10 -9 -9 --------- Run | Scr Mat Mat Min Machines Accessed . | . . . . Terminals . | . . . . Fabricators . | . . . . Repair Stations . | . . . . Recycling Units . | . . . . Scanalyzers . | . . . . Garrison Access . | . . . . Total Hacks . | . . . . Successful . | . . . . Failed . | . . . . Catastrophic . | . . . . Database Lockouts . | . . . . Manual . | . . . . Terminals . | . . . . Fabricators . | . . . . Repair Stations . | . . . . Recycling Units . | . . . . Scanalyzers . | . . . . Garrison Access . | . . . . Terminal Hacks . | . . . . Fabricator Hacks . | . . . . Repair Station Hacks . | . . . . Recycling Unit Hacks . | . . . . Scanalyzer . | . . . . Garrison Access Hacks . | . . . . Unauthorized Hacks . | . . . . Terminals . | . . . . Fabricators . | . . . . Repair Stations . | . . . . Recycling Units . | . . . . Scanalyzers . | . . . . Garrison Access . | . . . . Data Cores Recovered . | . . . . Used . | . . . . Hacking Detections . | . . . . Full Trace Events . | . . . . Feedback Events . | . . . . Feedback Blocked . | . . . . Robot Schematics Acquired . | . . . . Robots Built . | . . . . Matter . | . . . . Time . | . . . . Total Robot Build Rating . | . . . . Part Schematics Acquired . | . . . . Parts Built . | . . . . Matter . | . . . . Time . | . . . . Total Part Build Rating . | . . . . Parts Repaired . | . . . . Time . | . . . . Parts Recycled . | . . . . Recycled Matter . | . . . . Retrieved Matter . | . . . . Retrieved Components . | . . . . Parts Scanalyzed . | . . . . Part Schematics Acquired . | . . . . Parts Damaged . | . . . . Bothacking | -11 -10 -9 -9 ------------ Run | Scr Mat Mat Min Used RIF Installer . | . . . . Robots Hacked . | . . . . Non-combat . | . . . . Combat . | . . . . Robot Hacks Applied . | . . . . Relay Couplers Released . | . . . . Robots Rewired . | . . . . Allies Hacked . | . . . . Hacks Repelled . | . . . . Allies | -11 -10 -9 -9 -------- Run | Scr Mat Mat Min Total Allies . | . . . . Largest Group . | . . . . Highest-Rated Group . | . . . . Highest-Rated Ally . | . . . . Total Orders . | . . . . Ally Attacks . | . . . . Total Damage . | . . . . Kills . | . . . . Allies Corrupted . | . . . . Allies Melted . | . . . . Intel | -11 -10 -9 -9 ------- Run | Scr Mat Mat Min Robot Analysis Total . | . . . . Derelict Logs Recovered . | . . . . Drone Launches . | . . . . Drone Recoveries . | . . . . Exploration | -11 -10 -9 -9 ------------- Run | Scr Mat Mat Min Turns Passed 762 | 173 182 387 20 Spaces Moved 360 | 89 119 152 . Core 12 | 12 . . . Treads 194 | . 42 152 . Legs 154 | 77 77 . . Wheels . | . . . . Hover . | . . . . Flight . | . . . . Fastest Speed 50 | 50 120 180 . Average Speed 152 | 129 134 180 . Slowest Speed 200 | 200 160 180 . Overloaded Moves . | . . . . Propulsion Burnouts . | . . . . Robots Hopped . | . . . . Cave-ins Triggered . | . . . . Exploration Rate (%) 10 | 4 21 11 6 Regions Visited 3 Branch Regions 1 Pre-discovered Areas . | . . . . Known Exits Taken . | . . . . Unknown Exits Taken 3 | 1 1 1 . Scrap Searched . | . . . . Spaces Dug 2 | . 2 . . Terrain Destroyed 14 | . 2 . 12 Melee . | . . . . Projectile 2 | . 2 . . AOE 12 | . . . 12 Actions | -11 -10 -9 -9 --------- Run | Scr Mat Mat Min Total 514 | 118 134 249 13 Wait 83 | . . 76 7 Move 357 | 88 118 151 . Hop . | . . . . Pick Up 14 | 7 3 4 . Fast Attach 10 | 6 1 3 . Attach 4 | 1 . 2 1 Detach 2 | . 1 1 . Swap 7 | . 5 1 1 Drop 5 | . 3 2 . Fire 29 | 16 2 8 3 Melee . | . . . . Ram . | . . . . Kick . | . . . . Crush 3 | . 1 1 1 Escape Stasis . | . . . . Rewire . | . . . . Trap . | . . . . Miscellaneous . | . . . . Route ------- -11/Scrapyard -10/Materials -9/Materials -9/Mines History --------- Turn | Location | Event 21 | -11/Scrapyard | Discovered new exit (range 16) 174 | -11/Scrapyard | Entered Materials 304 | -10/Materials | Build established: Mutant 319 | -10/Materials | Discovered new exit (range 7) 356 | -10/Materials | Entered another Materials area 356 | -9/Materials | Evolved 2 slots: Utility x1, Weapon x1 656 | -9/Materials | Build established: Skirmisher 706 | -9/Materials | Discovered new exit (range 16) 743 | -9/Materials | Entered Mines 744 | -9/Mines | Assembled infested the area 752 | -9/Mines | System corruption reached 10% 760 | -9/Mines | Core integrity fell below 50% 763 | -9/Mines | Core integrity fell below 20% 763 | -9/Mines | Destroyed by as-12338 with Assembled F-torch Last Messages --------------- 00751_ System corrupted by crushing effect (+1). [Achievement: System Compromised] 00752_ Ion Engine destroyed. 00754_ Spread Laser destroyed. 00754_ System corrupted by crushing effect (+4). 00754_ Particle Gun destroyed. 00754_ System corrupted by crushing effect (+5). 00755_ Slammed into as-00339. 00756_ Lgt. Treads destroyed. 00757_ Lgt. Assault Rifle destroyed. 00757_ System corrupted by crushing effect (+5). 00757_ Knocked back. 00757_ Disposable Heat Sink destroyed. 00757_ System corrupted by crushing effect (+4). 00757_ Knocked back. 00760_ NTA4V:XU## %7&YXPFTE6RS:RYIBV5W1X 00761_ as-27806 shuts down. 00762_ as-17906 destroyed. 00762_ as-35662 destroyed. 00763_ Acquired 10 matter. Map ----- +----------------------------------------------------+ | ???????????????????????????????? | | ???????????????????????????????? | | ???????????????????????????????? | | ???????????????????????????????? | | ???????????????????????????????? | | ???????????????????????????????? | | ???????????????????????????????? | | ???????????????????????????????? | | ???????????????????????????????? | | ???????????????????????????????? | | ???????????????????????????????? | | ???????????????????????????????? | | ???????????????????????????????? | | ???????????????????????????????? | | ???????????????????????????????? | | ???????????????????????????????? | | ???????????????????????????????? | | ???????????????????????????????? | | ???????????????????????????????? | | ???????????????????????????????? | | ???????????????????????????????? | | ?????????????###????#########??? | | ????????? ### ??## # ;;;;##?? | | ????????# < ## a #?? | | ????????? # aaaaa ##? | | ????????????# a%= %@ ;#? | | ?????????????????# aa aaaa #?? | | ?????????????????## aaa a #?? | | ??????????????????## [ #?? | | ???????????????????# = #?? | | ???????????????????# " #?? | | ???????????????????# #?? | | ???????????????????###########?? | | ???????????????????????????????? | | ???????????????????????????????? | | ???????????????????????????????? | | ???????????????????????????????? | | | | | | | | | | | | | | | | | | | | | | | | | | | +----------------------------------------------------+ Best States ------------- Heat Dissipation 28 Coolant Potential 50 Energy Generation 10 Energy Capacity 250 Matter Stores 300 Matter Capacity 300 Sight Range 16 Terrain Scan Range 16 Terrain Scan Density 10 Evasion (%) 40 Recoil Reduction 2 Item Schematics ----------------- None Robot Schematics ------------------ None Fabricated ------------ Nothing Alien Tech Used ----------------- None Achievements -------------- Storm Trooper System Compromised Challenges ------------ None Game ------ Seed FlyingBladeChip Manual? 0 Play Time 00:10:13 Cumulative 9.6 hours Start 2019.11.03 @ 19:36:38 End 2019.11.03 @ 19:45:39 Sessions 1 Manual Loads 0 Difficulty Rogue Special Mode None Game No. 24 Rogue 24 Adventurer 0 Explorer 0 Win Type - Total 0 Types 0/0/0/0/0/0/0 Lore% 15 Gallery% 16 Achievement% 16 Wizard Run 0 Options --------- ASCII 0 Keyboard 0 Movement Numpad Keybinds 0 Fullscreen 1 Font 18/SmallcapsGlow Map View 76x50 Tactical HUD 1 Map Filters NONE Filters NONE Steam 1 RUN: efaa39e7-738a-49c5-a956-acd09f4b8b43